bitfinex/quotes_ETHUSD_20250715
["timestamp","ask_amount","ask_price","bid_price","bid_amount"]
[1752571899079,0.002,2982.6,2982.5,12.83557045]
[1752571899264,0.002,2982.6,2982.5,16.18846231]
[1752571900093,0.002,2982.6,2982.5,12.83557045]
[1752571901016,0.002,2982.6,2982.5,16.18846231]
[1752571901370,0.002,2982.6,2982.5,12.83557045]
[1752571902068,0.002,2982.6,2982.5,12.05907045]
[1752571902266,8.44677945,2982.6,2982.5,0.4481]
[1752571902875,8.44677945,2982.6,2982.1,0.16720001]
[1752571902876,5.094,2982.6,2982.1,0.62510001]
[1752571903202,3.52038917,2982.3,2982.1,1e-08]
[1752571903408,3.52038917,2982.3,2982.2,0.4579]
[1752571903579,3.35322915,2982.2,2982.1,1e-08]
[1752571906217,9.36898654,2982.3,2982.1,1e-08]
[1752571906414,5.2592,2982.3,2982.1,6.93141949]
[1752571906598,5.2592,2982.3,2982.2,0.4579]
[1752571906805,8.61231672,2982.3,2982.2,0.4579]
[1752571907593,3.35322915,2982.2,2982.1,1e-08]
[1752571909882,4.12302915,2982.2,2982.1,1e-08]
[1752571910195,5.31958374,2982.2,2982.1,1e-08]
[1752571916291,5.87358374,2982.2,2982.1,1e-08]
[1752571917114,5.87358374,2982.2,2981.7,0.001]
[1752571917115,3.90412893,2981.4,2981.0,0.001]
[1752571917317,10.4910441,2981.4,2981.0,0.001]
[1752571917497,9.9410441,2981.4,2981.0,0.4589]
[1752571917829,9.9410441,2981.4,2981.0,6.93241948]
[1752571918026,4.8490441,2981.4,2981.0,6.93241948]
[1752571918329,9.9410441,2981.4,2981.0,0.001]
[1752571919008,9.9410441,2981.4,2981.0,0.25628422]
[1752571923742,4.54982919,2982.2,2981.3,0.4721]
[1752571923942,3.3536139,2981.9,2981.8,6.47351948]
[1752571924106,5.093,2981.9,2981.8,6.94461948]
[1752571924744,11.40202977,2982.4,2981.8,6.94461948]
[1752571924915,11.40202977,2982.4,2981.9,0.4711]
[1752571924916,3.35325982,2982.2,2981.9,0.4711]
[1752571925120,3.35325982,2982.2,2982.0,0.4711]
[1752571925121,5.093,2982.1,2982.0,0.4711]
[1752571927248,5.093,2982.1,2982.0,4.58735405]
[1752571927542,0.1672,2982.2,2982.1,3.3533416]
[1752571927744,0.1672,2982.4,2982.3,3.35304166]
[1752571927941,5.2602,2982.4,2982.3,10.29766114]
[1752571928257,5.2602,2982.4,2982.3,10.2977362]
[1752571928406,5.2602,2982.4,2982.0,7.23631948]
[1752571928606,5.2602,2982.4,2982.1,1.25856195]
[1752571928811,8.61328649,2982.4,2982.1,0.78746195]
[1752571929046,3.35316773,2982.3,2982.2,0.4711]
[1752571929646,8.61325834,2982.4,2982.2,0.4711]
[1752571929815,5.2602,2982.4,2982.2,0.4711]
[1752571930015,5.2602,2982.4,2982.3,0.4711]
[1752571930233,8.61320429,2982.4,2982.3,0.4711]
[1752571931246,0.1672,2982.4,2982.3,0.4711]
[1752571931426,5.2592,2982.4,2982.3,6.94461948]
[1752571932760,0.1672,2982.4,2982.3,6.94461948]
[1752571932961,0.1672,2982.4,2982.3,11.80519815]
[1752571933245,0.1692,2982.6,2982.4,3.35294504]
[1752571933450,5.092,2982.5,2982.4,3.38647508]
[1752571933654,5.092,2982.5,2982.4,0.4711]
[1752571933826,5.092,2982.5,2982.4,1.98693819]
[1752571934150,5.092,2982.5,2982.4,5.33994248]
[1752571934324,5.092,2982.5,2982.4,15.37347252]
[1752571934648,5.092,2982.5,2982.4,15.33994248]
[1752571935760,5.092,2982.5,2982.4,11.98693819]
[1752571936525,5.092,2982.5,2982.4,15.33994248]
[1752571936730,0.002,2982.6,2982.4,15.33994248]
[1752571936941,0.002,2982.6,2982.5,2.8534413]
[1752571937144,5.093,2982.6,2982.5,2.8534413]
[1752571937366,5.093,2982.6,2982.5,2.81991239]
[1752571937672,5.093,2982.6,2982.5,6.17280425]
[1752571938450,5.093,2982.6,2982.5,17.00050425]
[1752571938654,5.093,2982.6,2982.5,17.16770425]
[1752571939168,0.002,2982.6,2982.5,17.16770425]
[1752571940032,0.002,2982.6,2982.5,17.42429597]
[1752571940931,0.002,2983.0,2982.9,3.35244225]
[1752571941132,0.002,2983.0,2982.9,4.78824136]
[1752571941445,0.002,2983.0,2982.9,5.42654136]
[1752571942230,0.002,2983.0,2982.9,2.07409911]
[1752571942470,0.002,2983.0,2982.9,1.4036]
[1752571942631,0.002,2983.0,2982.9,4.75604225]
[1752571943958,0.002,2983.0,2982.9,14.78956667]
[1752571944165,0.002,2983.0,2982.9,14.75604225]
[1752571945591,0.002,2983.0,2982.9,11.4036]
[1752571945958,0.002,2983.0,2982.9,14.75604225]
[1752571946683,0.002,2983.0,2982.9,13.10392598]
[1752571947092,0.002,2983.0,2982.9,16.45636823]
[1752571949176,0.002,2983.0,2982.9,13.10392598]
[1752571950306,0.002,2983.0,2982.9,11.4036]
[1752571950492,0.002,2983.0,2982.9,10.0]
[1752571950681,3.35245771,2982.9,2982.6,0.428]
[1752571950885,5.089,2982.8,2982.6,0.428]
[1752571951085,3.35266704,2982.7,2982.6,0.428]
[1752571951392,1.17941497,2982.7,2982.6,0.428]
[1752571951594,8.44158966,2982.8,2982.6,0.428]
[1752571952172,5.089,2982.8,2982.7,0.428]
[1752571952379,0.1672,2982.9,2982.7,0.428]
[1752571952704,0.1672,2982.9,2982.6,6.47351948]
[1752571952705,5.089,2982.8,2982.6,6.47351948]
[1752571953408,3.35269162,2982.7,2982.4,10.428]
[1752571953569,3.35269162,2982.7,2982.5,0.428]
[1752571954016,3.35269162,2982.7,2982.4,10.0]
[1752571954304,8.44160977,2982.8,2982.6,0.428]
[1752571954875,5.089,2982.8,2982.7,0.428]
[1752571956894,8.44155464,2982.8,2982.7,0.428]
[1752571957097,5.089,2982.8,2982.7,0.428]
[1752571958222,8.44155464,2982.8,2982.7,0.428]
[1752571958626,3.51969501,2982.9,2982.7,0.428]
[1752571958826,0.002,2983.0,2982.8,3.35255464]
[1752571959128,5.089,2982.9,2982.8,13.35255464]
[1752571959304,5.089,2982.9,2982.8,13.78055464]
[1752571960124,5.089,2982.9,2982.8,20.25407412]
[1752571960820,5.089,2982.9,2982.8,16.90151948]
[1752571961022,5.089,2982.9,2982.8,16.47351948]
[1752571961406,5.089,2982.9,2982.8,16.90151948]
[1752571963323,5.089,2982.9,2982.8,10.0]
[1752571963528,5.089,2982.9,2982.8,10.428]
[1752571964092,5.089,2982.9,2982.6,0.1672]
[1752571964292,5.089,2982.9,2982.7,0.428]
[1752571965303,5.089,2982.9,2982.6,13.51994696]
[1752571965509,5.089,2982.9,2982.7,3.78066268]
[1752571965817,5.089,2982.9,2982.8,0.428]
[1752571967310,5.089,2982.9,2982.6,10.5952]
[1752571967510,5.089,2982.9,2982.6,10.1672]
[1752571967809,5.089,2982.9,2982.7,0.428]
[1752571968328,5.089,2982.9,2982.8,0.428]
[1752571968831,5.091,2982.9,2982.8,0.428]
[1752571969414,3.35263797,2982.8,2982.6,10.0]
[1752571969618,5.089,2982.7,2982.6,0.428]
[1752571971136,8.44172306,2982.7,2982.5,0.25602348]
[1752571972506,8.44172306,2982.7,2982.5,0.68402348]
[1752571973216,5.089,2982.7,2982.5,0.68402348]
[1752571973716,8.44167482,2982.7,2982.5,0.68402348]
[1752571974439,5.089,2982.7,2982.5,0.68402348]
[1752571974628,0.1672,2982.8,2982.6,0.428]
[1752571974830,5.088,2982.7,2982.6,0.428]
[1752571975003,0.1672,2982.8,2982.6,0.428]
[1752571975202,5.088,2982.7,2982.6,0.428]
[1752571975953,5.088,2982.7,2982.6,14.55297945]
[1752571976106,0.002,2982.9,2982.7,10.0]
[1752571976306,5.09,2982.9,2982.8,9.82607412]
[1752571976501,5.09,2982.9,2982.8,10.42127412]
[1752571976737,0.002,2982.9,2982.8,11.98100381]
[1752571977406,0.002,2982.9,2982.8,21.98100381]
[1752571978606,0.002,2982.9,2982.8,22.79710381]
[1752571980340,0.002,2983.0,2982.9,14.18514225]
[1752571980656,0.002,2983.0,2982.9,19.71674225]
[1752571980823,0.002,2983.0,2982.9,23.13190821]
[1752571988913,0.002,2983.0,2982.9,22.29920821]
[1752571989926,0.002,2983.0,2982.9,23.08850821]
[1752571990252,0.002,2983.4,2983.3,20.61481223]
[1752571990552,0.002,2983.4,2983.3,25.86901223]
[1752571990753,0.002,2983.4,2983.3,34.32057819]
[1752571992754,0.002,2983.4,2983.3,29.23357819]
[1752571992914,0.002,2983.4,2983.3,34.32057819]
[1752571993125,0.002,2983.4,2983.3,25.09228544]
[1752571993357,0.002,2983.4,2983.3,33.53127819]
[1752571995951,0.002,2983.4,2983.3,28.77127819]
[1752571997155,0.002,2983.4,2983.3,29.58717819]
[1752572000985,0.002,2983.4,2983.3,18.02665871]
[1752572001166,0.002,2983.4,2983.3,18.60519275]
[1752572001367,0.002,2983.4,2983.3,15.2532]
[1752572001679,0.002,2983.4,2983.3,25.52231223]
[1752572003666,0.002,2983.4,2983.3,20.43631223]
[1752572003900,0.002,2983.4,2983.3,15.6968]
[1752572004276,0.002,2983.4,2983.3,19.04879275]
[1752572005473,0.002,2983.4,2983.3,15.6968]
[1752572005709,0.002,2983.4,2983.3,21.37021575]
[1752572007510,0.002,2983.4,2983.3,27.84373523]
[1752572007821,0.002,2983.4,2983.3,24.04814248]
[1752572008329,0.002,2983.4,2983.3,27.84373523]
[1752572008476,0.002,2983.4,2983.3,24.49174248]
[1752572008877,0.002,2983.4,2983.3,27.84373523]
[1752572009506,0.002,2983.4,2983.3,28.59963523]
[1752572012928,0.002,2983.4,2983.3,23.51363523]
[1752572013231,0.002,2983.4,2983.3,28.59863523]
[1752572015337,0.7643,2983.4,2983.3,0.1672]
[1752572015543,0.7643,2983.4,2983.0,0.001]
[1752572015544,3.35211821,2983.2,2983.0,0.1682]
[1752572015743,3.35221749,2983.1,2983.0,0.001]
[1752572015903,4.17551749,2983.1,2983.0,0.001]
[1752572016101,5.09548001,2983.1,2983.0,0.001]
[1752572017252,5.09148001,2983.1,2983.0,0.001]
[1752572017620,4.33871749,2983.1,2983.0,0.001]
[1752572019769,4.34271749,2983.1,2983.0,0.001]
[1752572020938,4.33871749,2983.1,2983.0,0.001]
[1752572021144,9.42471749,2983.1,2983.0,0.001]
[1752572021679,9.42871749,2983.1,2983.0,0.001]
[1752572021978,10.70680011,2983.1,2983.0,0.001]
[1752572023140,10.70280011,2983.1,2983.0,0.001]
[1752572023475,5.61680011,2983.1,2983.0,0.001]
[1752572023675,0.9865,2983.1,2983.0,0.001]
[1752572023860,6.0725,2983.1,2983.0,0.001]
[1752572024058,6.0735,2983.1,2983.0,0.001]
[1752572024278,0.8193,2983.1,2983.0,0.001]
[1752572024465,5.086,2983.2,2983.0,0.001]
[1752572024786,3.35210925,2983.2,2983.0,0.001]
[1752572024971,3.35393705,2983.4,2983.1,0.4482]
[1752572025311,3.35200514,2983.3,2983.1,0.4482]
[1752572025652,3.35393706,2983.4,2983.1,0.4482]
[1752572025887,0.002,2983.4,2983.1,0.4482]
[1752572026928,3.35393265,2983.4,2983.1,0.4482]
[1752572027269,0.002,2983.4,2983.1,0.4482]
[1752572027574,5.106,2983.4,2983.2,0.4482]
[1752572028208,8.45788102,2983.4,2983.2,0.4482]
[1752572028405,3.35388102,2983.4,2983.2,0.4482]
[1752572028626,0.002,2983.4,2983.3,3.80019275]
[1752572028775,0.002,2983.4,2983.3,16.17313845]
[1752572029113,0.002,2983.4,2983.3,12.78762578]
[1752572029324,0.002,2983.4,2983.3,12.00992578]
[1752572029518,0.002,2983.4,2983.3,11.56172578]
[1752572029708,0.002,2983.4,2983.3,10.0]
[1752572030101,0.002,2983.4,2983.1,0.1672]
[1752572030281,0.002,2983.4,2983.1,0.6154]
[1752572030716,0.002,2983.4,2983.2,0.4482]
[1752572031126,3.35202454,2983.3,2983.1,0.1672]
[1752572031310,3.35392239,2983.4,2983.1,0.1672]
[1752572031482,3.35392239,2983.4,2983.1,0.6154]
[1752572032212,0.002,2983.4,2983.1,0.6154]
[1752572032377,0.002,2983.4,2983.1,1.01382321]
[1752572032576,0.002,2983.4,2983.2,0.4482]
[1752572033581,3.3539002,2983.4,2983.2,0.4482]
[1752572033979,0.002,2983.4,2983.2,0.4482]
[1752572036121,0.002,2983.4,2983.2,3.80028341]
[1752572036323,0.002,2983.4,2983.2,4.16882291]
[1752572036525,0.002,2983.4,2983.3,3.80019275]
[1752572037301,0.002,2983.4,2983.3,0.4482]
[1752572038521,0.002,2983.4,2983.2,4.16880108]
[1752572038522,0.002,2983.4,2983.2,0.8167395]
[1752572038719,0.8272,2983.4,2983.1,0.1672]
[1752572038920,0.8272,2983.4,2983.1,0.6154]
[1752572039125,0.8272,2983.4,2983.1,3.96759599]
[1752572039327,0.8272,2983.4,2983.1,3.51939599]
[1752572039620,0.8272,2983.4,2983.2,0.4718]
[1752572039792,0.002,2983.4,2983.2,1.20625121]
[1752572041987,0.002,2983.4,2983.2,4.08653888]
[1752572042346,0.002,2983.4,2983.3,3.82379275]
[1752572042486,0.002,2983.4,2983.3,14.58249275]
[1752572042685,0.002,2983.4,2983.3,14.74969275]
[1752572042898,0.002,2983.4,2983.3,17.28079232]
[1752572052126,0.002,2983.4,2983.3,22.04079232]
[1752572052329,0.002,2983.4,2983.3,27.13379232]
[1752572059228,0.002,2983.4,2983.3,23.78179957]
[1752572061575,0.002,2983.4,2983.3,4.9272]
[1752572061729,3.3538804,2983.4,2983.3,4.9272]
[1752572061933,0.002,2983.4,2983.3,4.9272]
[1752572062148,0.002,2983.4,2983.3,14.9272]
[1752572064034,0.002,2983.4,2983.3,10.1672]
[1752572067155,0.002,2983.4,2983.3,10.639]
[1752572067971,0.002,2983.4,2983.3,11.7399]
[1752572068154,0.002,2983.4,2983.3,12.2117]
[1752572071173,0.002,2983.4,2983.3,17.2987]
[1752572072381,0.002,2983.4,2983.3,15.726]
[1752572075309,0.002,2983.4,2983.0,10.64895826]
[1752572075310,4.1834804,2983.4,2983.2,5.087]
[1752572075609,4.1834804,2983.4,2983.1,0.1672]
[1752572075808,4.1834804,2983.4,2983.1,5.2542]
[1752572076012,3.35210512,2983.2,2983.1,0.1672]
[1752572076302,3.35221749,2983.1,2983.0,0.001]
[1752572077308,3.35213918,2983.2,2983.0,0.001]
[1752572077715,3.35221749,2983.1,2983.0,0.001]
[1752572079922,0.9988,2983.4,2983.0,0.001]
[1752572080215,9.4377561,2983.4,2983.0,0.4576]
[1752572080394,3.35199886,2983.3,2983.0,0.4576]
[1752572080596,9.43768149,2983.4,2983.0,0.4576]
[1752572080999,3.35216379,2983.2,2983.0,0.4576]
[1752572082809,3.35205283,2983.3,2983.0,0.4576]
[1752572083188,0.1692,2983.4,2983.1,6.93134994]
[1752572083389,0.002,2983.4,2983.2,10.49012105]
[1752572083599,0.002,2983.4,2983.2,10.6238]
[1752572083819,0.002,2983.4,2983.3,0.03351992]
[1752572083993,0.002,2983.4,2983.3,0.4566]
[1752572084306,0.002,2983.4,2983.3,0.49011992]
[1752572084522,0.002,2983.4,2983.3,0.4566]
[1752572085117,0.002,2983.4,2983.2,10.1672]
[1752572085316,0.002,2983.4,2983.2,0.1672]
[1752572085583,0.002,2983.4,2983.2,10.1672]
[1752572086609,0.002,2983.4,2983.3,0.4566]
[1752572088348,0.002,2983.4,2983.3,3.84211267]
[1752572088646,0.002,2983.4,2983.3,6.02432983]
[1752572089213,0.002,2983.4,2983.3,16.02432983]
[1752572089420,0.002,2983.4,2983.3,15.99080991]
[1752572089622,0.002,2983.4,2983.3,21.07780991]
[1752572090053,0.002,2983.4,2983.3,21.89680991]
[1752572090806,1e-08,2983.4,2983.3,21.89680991]
[1752572091724,0.002,2983.8,2983.7,4.14754338]
[1752572091924,0.002,2983.8,2983.7,26.45921233]
[1752572092123,0.002,2983.8,2983.7,27.08301233]
[1752572095854,0.002,2983.8,2983.7,19.81226239]
[1752572096168,0.002,2983.8,2983.7,15.2532]
[1752572097157,0.002,2983.8,2983.7,18.60474338]
[1752572097362,0.002,2983.8,2983.7,19.06134338]
[1752572098048,0.002,2983.8,2983.7,10.6238]
[1752572098648,0.002,2983.8,2983.7,10.1672]
[1752572098857,0.002,2983.8,2983.7,0.1672]
[1752572099663,3.35343106,2983.8,2983.7,0.1672]
[1752572099972,3.35172228,2983.6,2983.5,0.1672]
[1752572100470,4.16962228,2983.6,2983.5,0.1672]
[1752572100670,4.17362228,2983.6,2983.5,0.1672]
[1752572100876,4.16962228,2983.6,2983.5,0.1672]
[1752572102258,3.35193613,2983.4,2983.0,4.761]
[1752572102587,3.35180719,2983.5,2983.2,0.1672]
[1752572104677,9.25561213,2983.6,2983.2,0.1672]
[1752572105030,3.35176813,2983.5,2983.2,0.6097]
[1752572105390,3.35176813,2983.5,2983.2,0.1672]
[1752572106193,9.25561641,2983.6,2983.2,0.1672]
[1752572106797,3.35180023,2983.5,2983.2,0.1672]
[1752572107296,9.25561632,2983.6,2983.2,0.1672]
[1752572109500,0.7923,2983.8,2983.5,6.47474994]
[1752572109709,5.088,2983.8,2983.6,0.6097]
[1752572111792,0.002,2983.8,2983.6,0.6097]
[1752572112617,5.088,2983.8,2983.6,0.6097]
[1752572115422,5.088,2983.8,2983.7,0.4425]
[1752572115621,5.088,2983.8,2983.7,0.6097]
[1752572116584,0.002,2983.8,2983.7,0.6097]
[1752572116789,5.088,2983.8,2983.7,0.6097]
[1752572116984,5.088,2983.8,2983.7,0.1672]
[1752572117191,8.43943106,2983.8,2983.7,0.1672]
[1752572119303,5.088,2983.8,2983.7,0.1672]
[1752572119827,8.43943106,2983.8,2983.7,0.1672]
[1752572120040,5.088,2983.8,2983.7,0.1672]
[1752572122811,0.002,2983.8,2983.7,0.6097]
[1752572123010,5.088,2983.8,2983.7,0.6097]
[1752572123219,5.088,2983.8,2983.7,0.1672]
[1752572126166,5.088,2983.8,2983.7,0.6097]
[1752572126664,5.088,2983.8,2983.7,0.1672]
[1752572127874,5.088,2983.8,2983.7,0.6097]
[1752572128970,0.002,2983.8,2983.7,0.6097]
[1752572129138,5.088,2983.8,2983.7,0.6097]
[1752572129339,5.087,2983.8,2983.7,0.6097]
[1752572129666,0.002,2983.8,2983.7,0.6097]
[1752572129879,5.087,2983.8,2983.7,0.6097]
[1752572133572,0.002,2983.8,2983.7,0.6097]
[1752572133778,5.087,2983.8,2983.7,0.6097]
[1752572134762,5.087,2983.8,2983.7,0.1672]
[1752572134967,8.43843106,2983.8,2983.7,0.1672]
[1752572135154,5.087,2983.8,2983.7,0.1672]
[1752572139657,8.43843106,2983.8,2983.7,0.1672]
[1752572139863,5.087,2983.8,2983.7,0.1672]
[1752572141796,0.002,2983.8,2983.7,0.1672]
[1752572142006,5.087,2983.8,2983.7,0.6206]
[1752572142604,8.43843106,2983.8,2983.7,0.6206]
[1752572142776,9.6213975,2983.8,2983.7,0.1672]
[1752572142975,3.35168325,2983.6,2983.1,0.4534]
[1752572143189,3.35206109,2983.3,2983.2,0.1672]
[1752572143387,8.43699275,2983.3,2983.2,0.1672]
[1752572145074,3.35221749,2983.1,2983.0,0.001]
[1752572145399,8.43721749,2983.1,2983.0,0.1682]
[1752572145977,5.085,2983.1,2983.0,0.1682]
[1752572151677,5.085,2983.1,2983.0,0.6216]
[1752572152203,8.43721749,2983.1,2983.0,0.1682]
[1752572155038,5.085,2983.1,2983.0,0.1682]
[1752572155633,0.7813,2983.4,2983.0,0.1682]
[1752572155814,0.1672,2983.5,2983.0,0.1682]
[1752572155815,5.085,2983.3,2983.0,0.6216]
[1752572156018,5.085,2983.3,2983.2,0.1672]
[1752572156210,5.085,2983.3,2983.2,0.6206]
[1752572157678,9.24179275,2983.3,2983.2,0.1672]
[1752572159653,3.35221749,2983.1,2983.0,0.001]
[1752572159818,8.43721749,2983.1,2983.0,0.001]
[1752572160505,5.085,2983.1,2983.0,0.001]
[1752572161466,4.11412986,2983.0,2982.9,0.001]
[1752572161815,4.11812986,2983.0,2982.9,0.001]
[1752572163051,9.19912986,2983.0,2982.9,0.001]
[1752572163203,8.046,2983.5,2982.9,0.001]
[1752572163409,4.11379275,2983.3,2982.9,0.4584]
[1752572163711,4.11379716,2983.3,2982.9,0.4584]
[1752572163914,3.35222454,2983.1,2982.9,0.4584]
[1752572164220,5.085,2983.0,2982.9,0.4584]
[1752572164424,3.35222454,2983.1,2982.9,0.4584]
[1752572164626,5.085,2983.0,2982.9,0.4584]
[1752572167247,3.35215984,2983.2,2982.9,0.4584]
[1752572167555,5.085,2983.1,2982.9,0.4584]
[1752572167855,5.085,2983.1,2982.9,0.001]
[1752572168150,5.085,2983.1,2983.0,0.4574]
[1752572168514,3.3520346,2983.3,2983.0,0.4574]
[1752572168515,0.002,2983.4,2983.0,0.4574]
[1752572168780,0.002,2983.4,2983.0,12.09980363]
[1752572168781,5.085,2983.3,2983.0,12.09980363]
[1752572168933,5.085,2983.3,2983.1,0.4574]
[1752572171353,5.085,2983.3,2983.2,0.1672]
[1752572171647,5.085,2983.3,2983.2,0.6246]
[1752572176731,0.002,2983.4,2983.2,0.6246]
[1752572176957,5.085,2983.3,2983.2,0.1672]
[1752572177552,5.085,2983.3,2983.2,0.6246]
[1752572178725,0.002,2983.4,2983.3,14.13949275]
[1752572178948,0.002,2983.4,2983.3,21.07164269]
[1752572179228,5.087,2983.8,2983.7,3.35154338]
[1752572179422,0.002,2984.1,2983.9,0.7583]
[1752572179761,0.002,2984.1,2984.0,0.95901206]
[1752572179923,0.002,2984.1,2984.0,6.4003767]
[1752572180273,0.002,2984.1,2984.0,4.73410643]
[1752572180771,0.002,2984.1,2984.0,0.1672]
[1752572181136,3.35309413,2984.1,2984.0,0.1672]
[1752572181360,3.35309413,2984.1,2983.8,0.1672]
[1752572181543,0.002,2984.1,2983.9,0.4574]
[1752572181762,0.002,2984.1,2984.0,14.61071849]
[1752572182075,0.002,2984.1,2984.0,13.83687827]
[1752572182872,3.35309413,2984.1,2984.0,10.1672]
[1752572183077,3.35309413,2984.1,2983.1,6.47474994]
[1752572183078,3.35138074,2983.9,2983.6,0.4574]
[1752572183242,3.35138074,2983.9,2983.7,0.1672]
[1752572183442,3.35143106,2983.8,2983.7,0.6246]
[1752572183666,3.35143106,2983.8,2983.7,0.1672]
[1752572184178,3.35171249,2983.6,2983.4,0.1672]
[1752572184354,3.35157904,2983.7,2983.4,10.6246]
[1752572184754,3.35162741,2983.7,2983.4,0.6246]
[1752572185170,8.44562741,2983.7,2983.4,0.6246]
[1752572187188,5.094,2983.7,2983.4,0.6246]
[1752572188042,8.4455661,2983.7,2983.4,0.6246]
[1752572189159,8.4455661,2983.7,2983.4,10.6246]
[1752572189160,5.094,2983.7,2983.4,10.6246]
[1752572189364,5.094,2983.7,2983.4,13.10324432]
[1752572190292,5.094,2983.7,2983.4,12.64584432]
[1752572190502,5.094,2983.7,2983.5,0.4366]
[1752572190651,5.094,2983.7,2983.4,12.64584432]
[1752572190848,5.094,2983.7,2983.6,0.4366]
[1752572191055,5.093,2983.8,2983.6,0.4366]
[1752572191393,5.093,2983.8,2983.7,0.4366]
[1752572192686,8.44443106,2983.8,2983.7,0.4366]
[1752572192895,5.093,2983.8,2983.7,0.4366]
[1752572193250,8.44443106,2983.8,2983.7,0.4366]
[1752572193451,5.093,2983.8,2983.7,0.4366]
[1752572193954,5.092,2983.8,2983.7,0.4366]
[1752572194172,0.002,2983.8,2983.7,0.4366]
[1752572198670,0.002,2983.8,2983.7,4.24453996]
[1752572198870,0.002,2983.8,2983.7,14.24453996]
[1752572199186,0.002,2983.8,2983.7,0.1672]
[1752572199391,0.002,2983.8,2983.6,0.1672]
[1752572199901,0.002,2983.8,2983.6,0.6038]
[1752572200871,5.092,2983.8,2983.6,0.6038]
[1752572204807,5.092,2983.8,2983.7,0.4366]
[1752572207891,5.092,2983.8,2983.4,10.0]
[1752572208209,5.092,2983.8,2983.4,10.1672]
[1752572208413,3.35163968,2983.7,2983.4,0.6038]
[1752572208634,4.68460534,2983.6,2983.4,0.1672]
[1752572208924,4.68460534,2983.6,2983.0,0.7877]
[1752572208925,4.17096577,2983.5,2983.0,3.3523231]
[1752572209229,5.088,2983.4,2983.2,0.4366]
[1752572210420,5.088,2983.4,2983.3,0.4366]
[1752572211191,8.4398804,2983.4,2983.3,0.4366]
[1752572211389,8.4398804,2983.4,2982.9,3.35339099]
[1752572211390,3.35200541,2983.3,2982.9,10.001]
[1752572211623,4.11639227,2983.3,2983.0,0.4366]
[1752572211799,5.087,2983.2,2982.9,0.001]
[1752572212325,3.35226929,2983.1,2982.9,0.001]
[1752572212624,5.088,2983.0,2982.9,0.001]
[1752572213806,5.088,2983.0,2982.9,0.4376]
[1752572214131,5.087,2983.0,2982.9,0.4376]
[1752572215126,4.11630224,2983.3,2982.9,0.4376]
[1752572215333,5.087,2983.2,2982.9,0.4376]
[1752572217536,5.087,2983.2,2982.9,0.001]
[1752572217738,5.086,2983.1,2983.0,0.4366]
[1752572218315,5.086,2983.1,2983.0,1.12760865]
[1752572218715,5.086,2983.1,2983.0,0.4366]
[1752572218916,5.086,2983.1,2982.9,0.001]
[1752572219156,0.1672,2983.0,2982.9,0.001]
[1752572220053,5.086,2983.1,2982.9,0.001]
[1752572220249,5.2532,2983.1,2982.9,3.82312666]
[1752572220460,0.1672,2983.1,2983.0,0.4697]
[1752572220663,5.2532,2983.1,2983.0,0.4697]
[1752572221526,0.1672,2983.1,2983.0,0.4697]
[1752572221735,5.2532,2983.1,2983.0,0.4697]
[1752572222445,5.2532,2983.1,2983.0,3.82202986]
[1752572222966,5.2532,2983.1,2983.0,0.4697]
[1752572223357,0.1672,2983.1,2983.0,3.82202986]
[1752572223514,5.2522,2983.1,2983.0,3.82202986]
[1752572223719,5.2522,2983.1,2983.0,0.4697]
[1752572225254,5.2522,2983.1,2983.0,3.82202986]
[1752572225627,0.8266,2983.6,2983.2,3.35199839]
[1752572225854,0.1672,2983.4,2983.3,3.82169275]
[1752572226133,5.2522,2983.4,2983.3,3.82169275]
[1752572226545,5.2522,2983.4,2983.3,0.4697]
[1752572226936,5.2522,2983.4,2983.3,3.82169275]
[1752572227638,0.002,2983.8,2983.6,3.35164758]
[1752572227823,5.085,2983.7,2983.6,9.82413404]
[1752572228621,5.085,2983.7,2983.6,10.29383404]
[1752572228817,0.002,2983.8,2983.7,3.35154338]
[1752572229022,5.087,2983.8,2983.7,3.82124338]
[1752572230927,0.002,2983.8,2983.7,3.82124338]
[1752572231258,0.002,2983.8,2983.7,5.27812108]
[1752572236052,0.002,2983.8,2983.6,0.9234]
[1752572236252,0.002,2983.8,2983.4,3.82152355]
[1752572236464,5.084,2983.7,2983.4,3.82152355]
[1752572236631,5.084,2983.7,2983.5,0.4697]
[1752572237465,5.084,2983.7,2983.6,0.4697]
[1752572237775,5.084,2983.7,2983.6,16.94218646]
[1752572237977,5.084,2983.7,2983.6,10.4697]
[1752572238454,5.086,2983.7,2983.6,10.4697]
[1752572239150,0.002,2983.7,2983.6,16.59771052]
[1752572239327,0.002,2983.7,2983.6,16.76491052]
[1752572240171,0.002,2983.7,2983.6,13.41325481]
[1752572240373,0.002,2983.7,2983.6,12.63445481]
[1752572240671,0.002,2983.7,2983.6,0.1672]
[1752572240860,0.002,2983.7,2983.4,0.6369]
[1752572241231,0.002,2983.7,2983.4,0.1672]
[1752572241657,3.35171047,2983.6,2983.4,0.1672]
[1752572241938,5.084,2983.5,2983.4,0.6369]
[1752572244469,5.084,2983.6,2983.5,3.3517651]
[1752572244676,5.084,2983.6,2983.5,0.4697]
[1752572245837,0.002,2983.7,2983.5,6.94218646]
[1752572246037,5.086,2983.7,2983.5,10.29394288]
[1752572246364,0.002,2983.7,2983.6,0.4697]
[1752572246560,5.086,2983.7,2983.6,0.4697]